bitfinex/quotes_ETHUSD_20241124
["timestamp","ask_amount","ask_price","bid_price","bid_amount"]
[1732425248650,0.7666,3412.6,3411.2,0.8283]
[1732425251053,0.7666,3412.6,3410.7,3.02931122]
[1732425251256,0.7666,3412.6,3411.0,0.33214099]
[1732425251620,0.76613827,3412.6,3411.0,0.33214099]
[1732425252016,0.76613827,3412.6,3411.3,3.0]
[1732425252457,0.76613827,3412.6,3411.1,0.8283]
[1732425252658,0.30113827,3412.5,3411.3,3.0]
[1732425253647,0.30113827,3412.5,3411.1,0.8283]
[1732425254044,2.24524447,3412.7,3411.1,0.8283]
[1732425254359,2.24524447,3412.7,3411.2,0.02931215]
[1732425254760,0.7666,3412.6,3411.2,0.02931215]
[1732425255338,0.7666,3412.6,3411.3,0.8283]
[1732425256534,0.7666,3412.6,3411.4,0.02930881]
[1732425256867,0.7666,3412.6,3412.0,0.8315]
[1732425257474,0.7897,3413.2,3412.0,0.8315]
[1732425257671,0.7897,3413.2,3412.1,0.38315]
[1732425257862,0.7897,3413.2,3412.0,0.8315]
[1732425258433,0.7897,3413.2,3412.0,1.1236]
[1732425260179,0.7897,3413.2,3412.2,3.0]
[1732425261449,0.7897,3413.2,3412.0,0.8315]
[1732425261669,0.7897,3413.2,3412.2,3.0]
[1732425262159,0.7897,3413.2,3411.6,0.32140584]
[1732425262331,0.8181,3413.1,3412.2,3.0]
[1732425262537,0.8181,3413.1,3411.6,0.32140584]
[1732425262739,0.8181,3413.1,3412.2,3.0]
[1732425262946,0.81591202,3413.1,3412.3,0.3]
[1732425264978,0.81591202,3413.1,3412.2,3.0]
[1732425265180,0.81591202,3413.1,3411.7,1.09640454]
[1732425265337,0.81591202,3413.1,3411.8,0.775]
[1732425265539,0.81591202,3413.1,3411.9,0.02930273]
[1732425268174,0.81591202,3413.1,3412.2,3.0]
[1732425268492,0.81591202,3413.1,3412.2,3.02930261]
[1732425268835,0.81591202,3413.1,3412.2,3.0]
[1732425269070,0.81591202,3413.1,3412.0,0.16864556]
[1732425269585,0.81591202,3413.1,3412.1,0.02930262]
[1732425270655,0.81591202,3413.1,3412.1,0.32140262]
[1732425271535,0.81591202,3413.1,3412.3,3.0]
[1732425271735,0.81591202,3413.1,3412.4,0.33214026]
[1732425272253,0.81591202,3413.1,3412.3,3.0]
[1732425272540,0.81591202,3413.1,3412.1,0.2921]
[1732425273135,0.81591202,3413.1,3412.3,3.0]
[1732425274041,0.81591202,3413.1,3412.1,0.2921]
[1732425274617,0.81591202,3413.1,3412.3,3.0]
[1732425274911,0.81591202,3413.1,3412.4,0.32921]
[1732425275211,0.81591202,3413.1,3412.1,0.32140262]
[1732425275212,0.81591202,3413.1,3412.3,0.7607]
[1732425276311,0.1524479,3413.3,3412.4,1.0527]
[1732425276621,0.1524479,3413.3,3412.7,1.0527]
[1732425276774,0.1524479,3413.3,3413.0,0.292]
[1732425276968,0.1524479,3413.3,3413.1,0.02929146]
[1732425277188,0.1524479,3413.3,3413.2,1.0527]
[1732425277726,0.1524479,3413.3,3413.2,0.292]
[1732425278009,0.1524479,3413.3,3412.9,4.0563]
[1732425278174,0.1524479,3413.3,3413.0,0.879]
[1732425278687,0.1524479,3413.3,3413.0,0.587]
[1732425283919,0.7513,3413.2,3413.0,0.587]
[1732425284216,0.7513,3413.2,3412.2,2.85]
[1732425284716,0.7513,3413.2,3412.2,3.142]
[1732425284915,0.7513,3413.2,3412.3,0.41042452]
[1732425285314,0.7513,3413.2,3412.2,0.02930071]
[1732425285654,0.7513,3413.2,3412.1,0.32130071]
[1732425285981,0.7513,3413.2,3412.6,3.0]
[1732425286619,0.7513,3413.2,3412.1,0.32130071]
[1732425287129,0.7513,3413.2,3412.6,3.0]
[1732425287530,0.74881158,3413.2,3412.1,0.32130071]
[1732425287733,0.74881158,3413.2,3412.6,3.0]
[1732425288608,0.74881158,3413.2,3412.0,0.16864556]
[1732425288790,0.31439392,3413.1,3411.6,0.32130073]
[1732425289401,0.31439392,3413.1,3411.6,3.17130073]
[1732425289723,2.39512757,3413.3,3411.6,3.74911991]
[1732425289923,2.39512757,3413.3,3411.6,3.17130073]
[1732425290127,2.39512757,3413.3,3411.8,0.292]
[1732425290510,2.39512757,3413.3,3411.8,0.32130272]
[1732425290838,0.7513,3413.2,3411.8,0.32130272]
[1732425290994,0.7513,3413.2,3412.0,0.7643]
[1732425291538,0.7513,3413.2,3412.4,3.0]
[1732425292231,0.7513,3413.2,3412.0,0.7643]
[1732425293335,0.7513,3413.2,3412.1,0.02930273]
[1732425293636,0.7513,3413.2,3412.1,0.32130273]
[1732425294742,0.7513,3413.2,3412.1,3.32130273]
[1732425294921,0.7513,3413.2,3412.3,0.292]
[1732425295303,0.7513,3413.2,3412.3,3.292]
[1732425295837,0.7513,3413.2,3412.3,0.292]
[1732425296138,0.7513,3413.2,3412.3,3.292]
[1732425296546,0.7513,3413.2,3412.3,0.292]
[1732425296842,0.7513,3413.2,3412.4,3.02930086]
[1732425297053,0.7513,3413.2,3412.5,1.09643009]
[1732425297253,0.7513,3413.2,3412.6,3.02929636]
[1732425297556,0.7513,3413.2,3412.7,3.0]
[1732425298052,0.7513,3413.2,3412.6,0.02929636]
[1732425298613,0.7513,3413.2,3412.7,3.0]
[1732425298949,0.7513,3413.2,3412.5,0.7643]
[1732425299139,0.7513,3413.2,3412.7,3.0]
[1732425299453,0.7513,3413.2,3412.8,0.37643]
[1732425299834,0.1524479,3413.3,3412.7,3.0]
[1732425300151,0.1524479,3413.3,3412.8,0.02929584]
[1732425301557,0.1524479,3413.3,3413.0,0.292]
[1732425301767,0.1524479,3413.3,3413.1,0.02929194]
[1732425302357,0.1451479,3413.3,3413.1,0.02929194]
[1732425303056,0.1451479,3413.3,3413.2,0.8305]
[1732425303229,0.1451479,3413.3,3413.2,0.99952919]
[1732425305761,0.1451479,3413.3,3413.2,0.19831987]
[1732425305926,0.1451479,3413.3,3413.2,0.02929068]
[1732425311992,0.1451479,3413.3,3413.2,1.15179068]
[1732425313455,0.1451479,3413.3,3413.2,1.73661836]
[1732425321114,0.1451479,3413.3,3413.2,0.90611836]
[1732425321582,0.1451479,3413.3,3413.2,0.87682768]
[1732425321782,0.1451479,3413.3,3413.2,1.04981961]
[1732425328712,0.1451479,3413.3,3413.2,1.87361961]
[1732425330629,0.1451479,3413.3,3413.2,1.04981961]
[1732425339558,0.9717479,3413.3,3412.7,0.32129133]
[1732425339868,0.9717479,3413.3,3412.7,0.90762595]
[1732425340162,0.9717479,3413.3,3412.9,0.292]
[1732425341360,0.9717479,3413.3,3412.6,2.87]
[1732425341666,0.9717479,3413.3,3412.6,3.162]
[1732425341956,0.9717479,3413.3,3412.6,2.87]
[1732425343378,1.9572837,3413.3,3412.4,0.292]
[1732425343565,0.8266,3413.2,3411.8,0.292]
[1732425343737,0.8266,3413.2,3412.0,0.292]
[1732425344616,0.8266,3413.2,3411.9,0.02930226]
[1732425344954,0.8266,3413.0,3411.7,0.292]
[1732425345256,0.8266,3413.0,3411.7,0.78819935]
[1732425345457,0.8266,3413.0,3411.7,0.49619935]
[1732425347022,0.8266,3413.0,3411.8,0.02930462]
[1732425348128,0.8266,3413.0,3411.8,0.80550462]
[1732425348379,0.8266,3413.0,3411.9,0.56174974]
[1732425348657,0.8266,3413.0,3412.0,0.02930222]
[1732425349235,0.8266,3413.0,3411.9,0.56174974]
[1732425350923,0.82296192,3413.0,3411.9,0.59105375]
[1732425353683,0.82135192,3413.0,3411.9,0.59105375]
[1732425353849,0.82135192,3413.0,3412.0,0.43792531]
[1732425354049,0.82135192,3413.0,3412.1,0.02930212]
[1732425354249,0.82135192,3413.0,3412.0,0.46722743]
[1732425355261,0.82135192,3413.0,3412.0,0.43792531]
[1732425355460,0.82135192,3413.0,3412.1,0.292]
[1732425358146,0.82135192,3413.0,3412.1,0.32130399]
[1732425359385,0.82135192,3413.0,3412.0,0.72992531]
[1732425359691,0.82135192,3413.0,3412.1,0.47806751]
[1732425359849,0.82135192,3413.0,3412.0,0.32130116]
[1732425360243,0.82135192,3413.0,3412.0,0.292]
[1732425360547,0.82135192,3413.0,3411.9,0.292]
[1732425361489,0.82135192,3413.0,3412.0,0.02930456]
[1732425362104,0.82135192,3413.0,3411.7,0.02930157]
[1732425363389,0.82135192,3413.0,3411.8,0.292]
[1732425364813,0.82135192,3413.0,3411.9,0.02930437]
[1732425365015,0.82135192,3413.0,3412.1,0.292]
[1732425365238,0.82135192,3413.0,3412.1,0.32130162]
[1732425366013,0.82135192,3413.0,3412.1,0.02930162]
[1732425366520,0.82135192,3413.0,3412.2,0.8186]
[1732425366690,0.82135192,3413.0,3412.3,0.32129965]
[1732425367827,0.82135192,3413.0,3412.4,0.292]
[1732425367989,0.82135192,3413.0,3412.0,0.32129881]
[1732425368187,0.82135192,3413.0,3412.0,0.292]
[1732425368644,0.82135192,3413.0,3411.7,0.32130332]
[1732425368849,0.82135192,3413.0,3411.7,0.75667332]
[1732425370006,0.82135192,3413.0,3411.7,3.75667332]
[1732425371347,0.82135192,3413.0,3411.7,3.72737]
[1732425371348,0.8209035,3413.0,3411.7,3.72737]
[1732425373457,0.8209035,3413.0,3411.8,0.02930584]
[1732425373657,0.8209035,3413.0,3412.0,0.292]
[1732425375219,0.8209035,3413.0,3411.8,0.292]
[1732425375622,0.8209035,3413.0,3411.7,3.43537]
[1732425375929,0.8249,3412.8,3411.7,3.0]
[1732425376139,0.8249,3412.8,3411.5,3.0]
[1732425376452,0.8249,3412.8,3411.6,0.292]
[1732425376653,0.8249,3412.6,3411.6,0.9082]
[1732425376837,0.8249,3412.6,3411.5,3.0]
[1732425377617,0.8249,3412.6,3411.2,0.59510662]
[1732425377618,0.7542,3412.0,3411.2,2.85]
[1732425377848,0.7542,3412.0,3410.7,0.57797662]
[1732425378048,0.7542,3412.0,3410.6,0.8186]
[1732425378049,0.7542,3412.0,3410.8,0.02931226]
[1732425378258,0.7542,3412.0,3410.7,0.292]
[1732425378612,0.7542,3412.0,3410.9,0.292]
[1732425379320,0.7542,3412.0,3411.2,3.0]
[1732425379563,0.7542,3412.0,3410.9,0.32131273]
[1732425380062,0.7542,3412.0,3411.2,3.0]
[1732425380213,0.7542,3412.0,3411.3,0.32931089]
[1732425380558,0.7542,3412.0,3411.8,3.0]
[1732425380776,0.7542,3412.0,3411.3,0.02931089]
[1732425380919,0.7542,3412.0,3411.8,3.0]
[1732425381349,0.7542,3412.0,3411.8,0.292]
[1732425381555,0.7542,3412.0,3411.8,3.292]
[1732425381866,0.7542,3412.0,3411.8,3.33213061]
[1732425382030,0.7542,3412.0,3411.3,0.02930755]
[1732425382232,0.7542,3412.0,3411.8,3.0]
[1732425382769,0.7542,3412.0,3411.3,0.02930751]
[1732425383868,0.7542,3412.0,3411.4,0.4658295]
[1732425384221,0.7542,3412.0,3411.5,0.02930762]
[1732425387220,0.7542,3413.2,3411.5,0.02930762]
[1732425387452,0.7542,3413.2,3411.6,1.1155]
[1732425387684,0.7542,3413.2,3411.7,0.02930202]
[1732425387990,0.7542,3413.2,3411.9,0.292]
[1732425388149,0.7542,3413.2,3412.6,3.0]
[1732425388488,0.7542,3413.2,3412.7,0.3]
[1732425388648,0.7542,3413.2,3412.0,0.0292999]
[1732425391133,0.7542,3413.2,3411.6,0.85280076]
[1732425391294,0.7542,3413.2,3411.6,0.02930076]
[1732425391594,0.7542,3413.2,3411.7,0.77641106]
[1732425391788,0.7542,3413.2,3411.8,0.02930272]
[1732425394978,0.72832,3413.2,3411.8,0.02930272]
[1732425399129,0.72832,3413.2,3411.7,0.77641106]
[1732425399408,0.8326,3413.1,3411.7,0.77641106]
[1732425399617,0.8326,3412.9,3411.5,0.02930618]
[1732425399771,0.8326,3412.9,3411.6,0.02930679]
[1732425399970,0.8326,3412.9,3411.5,0.66288954]
[1732425400600,0.8326,3412.9,3411.6,0.292]
[1732425402583,0.8326,3412.9,3411.7,0.02930685]
[1732425402796,0.8326,3412.8,3411.7,0.2007478]
[1732425403110,0.8326,3412.8,3412.1,3.0]
[1732425403472,0.8326,3412.8,3411.7,0.17144095]
[1732425405219,0.8326,3412.8,3411.7,0.20074779]
[1732425406980,0.8326,3412.8,3411.7,0.17144095]
[1732425407319,0.8326,3412.8,3411.7,0.20074778]
[1732425407674,0.8326,3412.8,3411.7,0.17144095]
[1732425409386,0.8326,3412.8,3411.7,0.20074777]
[1732425409796,0.8326,3412.8,3411.7,0.17144095]
[1732425410438,0.8326,3412.8,3411.7,0.20074627]
[1732425410592,0.8326,3412.8,3411.8,0.292]
[1732425411536,0.8326,3412.8,3411.7,0.32130532]
[1732425412592,0.8326,3412.8,3411.6,0.0293029]
[1732425412995,0.8326,3412.8,3411.7,1.0651]
[1732425413195,0.8326,3412.8,3411.8,0.02930291]
[1732425415611,0.8326,3412.8,3412.2,0.292]
[1732425415823,0.8326,3412.8,3412.5,3.0]
[1732425416006,0.8326,3413.2,3412.5,3.292]
[1732425416214,0.8326,3413.2,3412.6,0.36142669]
[1732425416621,0.8326,3413.2,3412.6,3.36142669]
[1732425417304,0.8326,3413.2,3412.6,0.36142669]
[1732425417500,0.8326,3413.2,3412.8,3.0]
[1732425418322,0.8326,3413.2,3412.3,0.02929637]
[1732425418544,0.8326,3413.2,3412.8,3.0]
[1732425418753,0.8326,3413.2,3412.3,0.02929637]
[1732425419065,0.8326,3413.2,3412.8,3.0]
[1732425419210,0.8326,3413.2,3412.9,0.3]
[1732425419724,0.8326,3413.2,3412.9,3.0]
[1732425420252,0.8326,3413.2,3412.6,0.02929645]
[1732425420609,0.8326,3413.2,3412.9,3.0]
[1732425421449,0.8326,3413.2,3412.6,0.02929645]
[1732425421651,0.8326,3413.2,3412.9,3.0]
[1732425421810,0.8326,3413.2,3413.0,0.3]
[1732425422233,0.8326,3413.2,3412.9,3.0]
[1732425423251,0.8326,3413.2,3412.6,0.02929645]
[1732425423416,0.8326,3413.2,3412.9,3.0]
[1732425423951,0.8326,3413.2,3413.0,3.0]
[1732425424151,0.1451479,3413.3,3412.8,0.32129644]
[1732425424152,0.1451479,3413.3,3413.2,3.0]
[1732425424667,0.1451479,3413.3,3412.8,0.292]
[1732425425542,0.1451479,3413.3,3412.6,0.32129338]
[1732425425709,0.1451479,3413.3,3412.8,0.292]
[1732425425906,0.7599,3413.2,3412.7,0.16625403]
[1732425426222,0.7599,3413.2,3412.2,0.0292957]
[1732425427035,0.7599,3413.2,3412.2,0.3212957]
[1732425427821,0.7599,3413.2,3412.2,0.0292957]
[1732425428016,0.7599,3413.2,3412.3,0.292]
[1732425429081,0.7599,3413.2,3412.0,0.32130066]
[1732425429381,0.7599,3413.2,3412.2,3.0]
[1732425429567,0.7599,3413.2,3412.2,3.02930068]
[1732425430586,0.7599,3413.2,3412.3,0.292]
[1732425431689,0.7599,3413.2,3412.1,0.32130071]
[1732425431841,0.7599,3413.2,3412.2,0.15905449]
[1732425435446,0.7599,3413.2,3412.3,0.02930075]
[1732425435883,0.7599,3413.2,3412.2,0.18835523]
[1732425436481,0.7599,3413.2,3412.2,3.94595523]
[1732425436780,0.7599,3413.2,3412.3,0.55071994]
[1732425437315,0.7599,3413.2,3412.4,0.02930076]
[1732425437604,0.7599,3413.2,3412.3,0.55071994]
[1732425437769,0.7599,3413.2,3412.4,0.02930075]
[1732425437973,0.7599,3413.2,3412.4,0.32130075]
[1732425438173,0.7599,3413.2,3412.5,0.40310752]
[1732425438672,0.7599,3413.2,3412.5,0.43240509]
[1732425438870,0.7599,3413.2,3412.5,0.40310752]
[1732425439764,0.7599,3413.2,3412.5,0.43240769]
[1732425439986,0.7599,3413.2,3412.5,0.40310752]
[1732425443613,0.7599,3413.2,3412.6,0.50575364]
[1732425444394,0.7599,3413.2,3412.6,0.47645283]
[1732425446818,0.7599,3413.2,3412.5,0.40310752]
[1732425447202,0.7599,3413.2,3412.2,0.87721453]
[1732425447838,0.7599,3413.2,3412.0,0.292]
[1732425448131,0.7599,3413.2,3412.0,1.1202]
[1732425448331,0.7599,3413.2,3412.2,0.292]
[1732425448550,0.7599,3413.2,3412.5,1.1202]
[1732425448694,0.7599,3413.2,3412.6,0.02929695]
[1732425449794,0.1451479,3413.3,3412.6,0.02929695]
[1732425450332,0.1451479,3413.3,3412.8,0.292]
[1732425450636,0.1451479,3413.3,3412.9,0.02929328]
[1732425450810,0.8137,3413.2,3412.8,0.292]
[1732425451015,0.8137,3413.2,3412.8,0.70694934]
[1732425453432,0.8137,3413.2,3412.8,1.28021518]
[1732425455985,1.0,3414.6,3414.1,8.82]
[1732425456124,1.0,3414.6,3414.2,0.882]
[1732425456345,1.0,3414.6,3413.8,1.1202]
[1732425456346,1.0,3414.6,3413.9,0.02928447]
[1732425457087,1.0,3414.6,3413.9,0.89628177]
[1732425457445,1.0,3414.6,3413.9,0.32128447]
[1732425458740,1.0,3414.6,3414.0,0.17207412]
[1732425461010,1.0,3414.6,3414.3,3.0]
[1732425461412,1.0,3414.6,3414.1,0.02928511]
[1732425462930,1.0,3414.6,3414.0,0.20135863]
[1732425464108,0.7858,3414.5,3414.0,0.17207412]
[1732425464415,0.7858,3414.5,3413.7,0.02928589]
[1732425470337,0.7858,3414.5,3413.6,3.57479919]
[1732425470538,0.7858,3414.5,3413.7,0.292]
[1732425470752,0.7858,3414.5,3413.6,0.72718992]
[1732425470944,0.7858,3414.5,3413.5,2.87]
[1732425471525,0.7858,3414.5,3413.1,0.292]
[1732425471697,0.7858,3414.5,3413.2,0.02929222]
[1732425474635,0.7858,3414.5,3413.4,0.292]
[1732425474831,0.7858,3414.5,3413.5,0.02928641]
[1732425477550,0.7858,3414.5,3413.6,0.292]
[1732425477768,0.7858,3414.5,3413.7,0.02928512]
[1732425480157,0.7858,3414.5,3413.9,0.292]
[1732425480352,0.7858,3414.5,3414.0,0.02928513]
[1732425480554,0.7858,3414.5,3414.4,3.0]
[1732425480740,0.7858,3414.5,3414.4,3.3]
[1732425481356,0.7858,3414.5,3414.4,0.3]
[1732425481569,0.7858,3414.5,3413.9,0.02928515]
[1732425482466,0.7858,3414.5,3413.7,0.02928515]
[1732425482859,0.7858,3414.5,3413.7,0.32128515]
[1732425484074,0.7858,3414.5,3413.9,0.292]
[1732425484368,0.7858,3414.5,3414.0,0.0292848]
[1732425486535,0.7858,3414.5,3414.1,0.292]
[1732425487479,0.7858,3414.5,3414.4,3.0]
[1732425487657,0.7858,3414.5,3413.9,0.32128508]
[1732425489570,0.7858,3414.5,3414.1,0.292]
[1732425489769,0.7858,3414.5,3414.2,0.55622314]
[1732425490651,0.7858,3414.5,3414.3,0.292]
[1732425492082,0.7858,3414.5,3414.3,3.292]
[1732425492649,0.7858,3414.5,3414.3,3.86619648]
[1732425493651,0.7858,3414.5,3414.3,0.292]
[1732425493888,0.7858,3414.5,3414.0,0.292]
[1732425494190,0.7858,3414.5,3414.2,0.35562231]
[1732425499091,0.7858,3414.5,3414.3,3.0]
[1732425500616,0.7858,3414.5,3414.4,0.02928471]
[1732425500781,1.0,3414.6,3414.4,0.62107005]
[1732425501574,1.0,3414.6,3414.4,0.59178534]
[1732425502306,1.0,3414.6,3414.5,2.24094637]
[1732425502508,1.0,3414.6,3414.5,5.24094637]
[1732425502711,1.0,3414.6,3414.5,5.94638272]
[1732425502895,1.0,3414.6,3414.5,0.70543635]
[1732425503096,0.8216,3414.5,3414.3,3.292]
[1732425503879,0.8216,3414.5,3414.1,0.292]
[1732425518857,0.8216,3414.5,3414.3,2.24094637]
[1732425519017,1.0,3414.6,3414.4,0.25622337]
[1732425520654,1.0,3414.6,3414.4,3.25622337]
[1732425520826,1.0,3414.6,3414.4,0.25622337]
[1732425523634,1.0,3414.6,3414.4,3.25622337]
[1732425524159,1.0,3414.6,3414.4,0.25622337]
[1732425524367,1.0,3414.6,3414.5,0.7178218]
[1732425526655,1.0,3414.6,3414.5,1.70264473]
[1732425526819,1.0,3414.6,3414.5,0.98482293]
[1732425530833,1.0,3414.6,3414.5,1.27682293]
[1732425546508,1.8011,3414.6,3414.5,0.292]
[1732425547438,1.8011,3414.6,3414.3,0.292]
[1732425547647,1.8011,3414.6,3414.3,1.27682293]
[1732425548732,1.8011,3414.6,3414.1,0.98482293]
[1732425548733,0.775,3414.5,3414.1,0.98482293]
[1732425549602,0.775,3414.5,3414.0,0.292]
[1732425550040,0.775,3414.5,3414.0,0.66703507]
[1732425552134,0.775,3414.5,3414.1,0.292]
[1732425554255,0.775,3414.5,3414.0,0.37503507]
[1732425555005,0.775,3414.5,3414.0,0.40432276]
[1732425555303,0.775,3414.5,3414.0,0.69632276]
[1732425555502,0.775,3414.5,3414.1,0.42846735]
[1732425558151,1.0,3414.6,3414.1,1.22666735]
[1732425558508,1.0,3414.6,3414.2,0.70987687]
[1732425558746,1.0,3414.6,3414.3,0.02928266]
[1732425558948,1.0,3414.6,3414.5,1.0902]
[1732425560568,0.96318884,3414.6,3414.5,1.0902]
[1732425560742,0.96318884,3414.6,3414.5,0.292]
[1732425562356,0.96318884,3414.6,3414.5,0.8793866]
[1732425571967,0.96318884,3414.6,3414.5,0.908669]
[1732425572173,0.96318884,3414.6,3414.5,1.55897157]
[1732425572750,0.96318884,3414.6,3414.5,1.1118123]
[1732425581003,0.96318884,3414.6,3414.5,1.52968917]
[1732425593616,0.96158884,3414.6,3414.5,1.52968917]
[1732425594878,0.96078884,3414.6,3414.5,1.52968917]
[1732425595510,0.95998884,3414.6,3414.5,1.52968917]
[1732425596412,0.95918884,3414.6,3414.5,1.52968917]
[1732425598133,0.95758884,3414.6,3414.5,1.52968917]
[1732425598334,0.95678884,3414.6,3414.5,1.52968917]
[1732425598629,0.95598884,3414.6,3414.5,1.1118123]
[1732425598825,0.95518884,3414.6,3414.5,1.1118123]
[1732425599205,0.95438884,3414.6,3414.5,1.1118123]
[1732425600930,0.85740443,3414.6,3414.5,1.1118123]
[1732425601290,0.45469609,3414.6,3414.5,1.1118123]
[1732425601496,0.45309609,3414.6,3414.5,1.14109423]
[1732425602035,0.45149609,3414.6,3414.5,1.14109423]
[1732425602460,0.45149609,3414.6,3414.5,1.1118123]
[1732425602735,0.45069609,3414.6,3414.5,1.1118123]
[1732425602942,0.44989609,3414.6,3414.5,1.1118123]
[1732425603098,0.44829609,3414.6,3414.5,1.1118123]
[1732425603515,0.44749609,3414.6,3414.5,1.1118123]
[1732425604205,0.44669609,3414.6,3414.5,0.8793866]
[1732425604532,0.7551,3414.5,3413.8,0.2917]
[1732425604839,0.7551,3414.5,3413.3,2.85]
[1732425605001,0.7551,3414.5,3413.8,0.287]
[1732425605612,0.7551,3414.5,3413.8,0.5787]
[1732425607134,0.7551,3414.5,3413.8,3.5787]
[1732425609439,0.7551,3414.5,3413.8,3.287]
[1732425609638,0.7551,3414.4,3413.4,3.0]
[1732425609847,0.44589609,3414.6,3413.4,3.0]
[1732425609848,0.7551,3414.2,3413.4,3.0]
[1732425611343,0.7551,3414.2,3413.5,0.2917]
[1732425612045,0.7551,3414.2,3413.4,3.0]
[1732425617021,0.7551,3414.2,3413.3,2.85]
[1732425618662,0.98514956,3414.1,3413.3,2.85]
[1732425618853,1.00192496,3414.0,3412.4,0.02929745]
[1732425619050,1.00192496,3414.0,3412.4,0.32099745]
[1732425619051,0.8279,3414.0,3412.4,0.32099745]
[1732425619249,0.8279,3414.0,3412.4,0.2917]
[1732425620070,0.8279,3414.0,3412.4,0.88579024]
[1732425620230,0.8279,3414.0,3412.6,0.2917]
[1732425622075,0.8279,3414.0,3412.6,0.32099913]
[1732425622871,0.8279,3414.0,3412.6,0.2917]
[1732425623762,0.8279,3414.0,3412.6,0.32099914]
[1732425624677,0.8279,3414.0,3412.6,1.10549914]
[1732425624835,0.8279,3414.0,3412.8,0.2917]
[1732425625032,0.8279,3414.0,3412.8,0.32099774]
[1732425625432,0.8279,3414.0,3412.8,0.2917]
[1732425626745,0.8279,3414.0,3412.7,0.18725618]
[1732425626746,0.8279,3414.0,3413.1,0.2917]
[1732425626942,0.8279,3414.0,3413.2,0.02929388]
[1732425628055,0.8279,3414.0,3413.1,0.32099195]
[1732425629296,0.8279,3414.0,3413.1,0.02929195]
[1732425629452,0.8279,3414.0,3412.7,0.0292947]
[1732425630405,0.8279,3414.0,3413.5,3.0]
[1732425630555,0.8279,3414.0,3412.9,0.32099389]
[1732425631479,0.8279,3414.0,3413.1,0.2917]
[1732425631790,0.8279,3414.0,3413.1,0.32099325]
[1732425633287,0.8279,3414.0,3413.8,3.0]
[1732425633596,0.8279,3414.0,3413.9,0.3]
[1732425633777,0.8279,3414.0,3413.8,3.2917]
[1732425634264,0.01475053,3413.9,3413.8,0.2917]
[1732425634465,0.01475053,3413.9,3413.1,0.90885745]
[1732425634680,0.01475053,3413.9,3413.3,0.2917]
[1732425634882,0.01475053,3413.9,3413.8,3.2917]
[1732425635206,0.01475053,3413.9,3413.8,0.2917]
[1732425635910,0.01475053,3413.9,3413.1,0.32099023]
[1732425636401,0.01475053,3413.9,3413.8,3.2917]
[1732425636606,0.01475053,3413.9,3413.8,0.2917]
[1732425637427,0.01475053,3413.9,3413.6,0.32098745]
[1732425639490,0.01475053,3413.9,3413.6,0.2917]
[1732425639805,0.01475053,3413.9,3413.6,0.86390347]
[1732425640018,0.01475053,3413.9,3413.8,0.2917]
[1732425641600,0.01475053,3413.9,3413.8,0.27893722]
[1732425646224,0.01475053,3413.9,3413.8,1.06742566]
[1732425648005,0.01475053,3413.9,3413.8,0.30822566]
[1732425648231,0.01475053,3413.9,3413.8,0.27893722]
[1732425648538,0.01475053,3413.9,3413.8,0.46758399]
[1732425649322,0.7798,3414.2,3413.8,0.46758399]
[1732425649526,0.7798,3414.2,3413.6,0.29546126]
[1732425650423,0.7798,3414.2,3413.6,0.02928682]
[1732425650648,0.7798,3414.2,3413.4,0.26617444]
[1732425650649,0.7798,3414.2,3413.5,0.02928855]
[1732425655654,0.7798,3414.2,3413.4,0.29546326]
[1732425655813,0.7798,3414.2,3413.4,1.35055937]
[1732425656019,0.7798,3414.2,3413.4,1.32127055]
[1732425656559,0.7798,3414.2,3413.4,1.35056257]
[1732425661273,0.7798,3414.2,3413.6,0.26617444]
[1732425661575,0.7798,3414.2,3413.7,0.53950626]
[1732425663332,0.7798,3414.2,3413.7,0.51021814]
[1732425666170,0.7798,3414.2,3413.7,0.53950627]
[1732425667175,0.7798,3414.2,3413.7,1.13787577]
[1732425667377,0.7798,3414.2,3413.9,0.26617444]
[1732425668575,0.7798,3414.2,3413.6,0.29546188]
[1732425669631,0.7798,3414.2,3413.8,0.26617444]
[1732425669863,0.7798,3414.2,3414.0,0.26617444]
[1732425670048,0.7798,3414.2,3414.1,0.81617444]
[1732425674688,0.44589609,3414.6,3414.2,0.55]
[1732425674836,0.44589609,3414.6,3414.3,0.43048188]
[1732425675677,0.44589609,3414.6,3414.3,0.26617444]
[1732425676754,0.44589609,3414.6,3414.4,0.55]
[1732425677743,0.7689,3414.5,3414.4,0.55]
[1732425678180,0.7689,3414.5,3414.1,0.26617444]
[1732425678495,0.7689,3414.5,3413.6,0.02928793]
[1732425678646,0.7689,3414.5,3413.7,0.2917]
[1732425679551,0.7689,3414.5,3413.6,0.02928834]
[1732425679779,0.7689,3414.5,3413.8,0.2917]
[1732425680183,0.7689,3414.5,3413.9,0.55]
[1732425680747,0.7689,3414.5,3413.7,0.2917]
[1732425680943,0.7689,3414.5,3413.8,0.8417]
[1732425681145,0.7689,3414.5,3413.9,0.55]
[1732425681987,0.7689,3414.5,3413.7,0.2917]
[1732425682158,0.7689,3414.5,3413.8,0.8417]
[1732425682363,0.7689,3414.5,3413.8,0.2917]
[1732425682678,0.7689,3414.5,3413.6,0.55]
[1732425682874,0.7689,3414.5,3413.7,0.2917]
[1732425683085,0.7689,3414.5,3413.8,0.55]
[1732425683942,0.7689,3414.5,3413.6,0.8417]
[1732425686990,0.7689,3414.5,3413.6,0.55]
[1732425687148,0.7689,3414.5,3413.4,0.55]
[1732425687353,0.7561,3414.3,3413.4,0.55]
[1732425689516,0.7561,3414.3,3413.6,3.0]
[1732425689813,0.7561,3414.3,3413.7,0.55]
[1732425691691,0.7561,3414.3,3413.3,0.2917]
[1732425691929,0.7561,3414.3,3413.6,3.0]
[1732425692484,0.7561,3414.3,3413.3,0.2917]
[1732425692689,0.7561,3414.3,3413.6,3.0]
[1732425693085,0.7561,3414.3,3413.3,0.2917]